fUSD/lending_fUSD_20260512
["ID","MTS","AMOUNT","RATE_DAILY","PERIOD"]
[422111375,1778577115000,-500.0,0.00041361,120]
[422111372,1778577115000,-500.0,0.00041361,120]
[422111371,1778577115000,-1461.46,0.00041361,120]
[422111378,1778577115000,-500.0,0.00041361,120]
[422111388,1778577115000,-169.14221434,0.00041361,120]
[422111389,1778577115000,-1461.46,0.00041361,120]
[422111382,1778577115000,-246.77808575,0.00041361,120]
[422111383,1778577115000,-1461.46,0.00041361,120]
[422111380,1778577115000,-1461.46,0.00041361,120]
[422111401,1778577115000,-610.65399772,0.00041361,120]
[422111386,1778577115000,-500.0,0.00041361,120]
[422111381,1778577115000,-500.0,0.00041361,120]
[422111384,1778577115000,-500.0,0.00041361,120]
[422111387,1778577115000,-500.0,0.00041361,120]
[422111379,1778577115000,-500.0,0.00041361,120]
[422111385,1778577115000,-500.0,0.00041361,120]
[422111391,1778577115000,-550.76824033,0.00041361,120]
[422111390,1778577115000,-200.06862376,0.00041361,120]
[422111392,1778577115000,-385.19138974,0.00041361,120]
[422111393,1778577115000,-500.0,0.00041361,120]
[422111395,1778577115000,-500.0,0.00041361,120]
[422111394,1778577115000,-1461.46,0.00041361,120]
[422111398,1778577115000,-1461.46,0.00041361,120]
[422111396,1778577115000,-1461.46,0.00041361,120]
[422111377,1778577115000,-1461.46,0.00041361,120]
[422111431,1778577115000,-438.13897076,0.00041361,120]
[422111420,1778577115000,-500.0,0.00041361,120]
[422111428,1778577115000,-602.43736721,0.00041361,120]
[422111466,1778577115000,-500.0,0.00041361,120]
[422111468,1778577115000,-500.0,0.00041361,120]
[422111469,1778577115000,-500.0,0.00041361,120]
[422111473,1778577115000,-512.44695353,0.00041361,120]
[422111467,1778577115000,-500.0,0.00041361,120]
[422111477,1778577115000,-500.0,0.00041361,120]
[422111471,1778577115000,-500.0,0.00041361,120]
[422111478,1778577115000,-500.0,0.00041361,120]
[422111472,1778577115000,-500.0,0.00041361,120]
[422111474,1778577115000,-334.47766903,0.00041361,120]
[422111475,1778577115000,-500.0,0.00041361,120]
[422111470,1778577115000,-201.42857497,0.00041361,120]
[422111476,1778577115000,-500.0,0.00041361,120]
[422111463,1778577115000,-535.32407366,0.00041361,120]
[422111480,1778577115000,-163.40356112,0.00041361,120]
[422111490,1778577115000,-500.0,0.00041361,120]
[422111486,1778577115000,-500.0,0.00041361,120]
[422111488,1778577115000,-500.0,0.00041361,120]
[422111483,1778577115000,-162.5607014,0.00041361,120]
[422111489,1778577115000,-551.53753451,0.00041361,120]
[422111479,1778577115000,-500.0,0.00041361,120]
[422111487,1778577115000,-500.0,0.00041361,120]
[422111482,1778577115000,-169.33591598,0.00041361,120]
[422111484,1778577115000,-500.0,0.00041361,120]
[422111485,1778577115000,-500.0,0.00041361,120]
[422111481,1778577115000,-500.0,0.00041361,120]
[422111492,1778577115000,-500.0,0.00041361,120]
[422111432,1778577115000,-500.0,0.00041361,120]
[422111491,1778577115000,-500.0,0.00041361,120]
[422111461,1778577115000,-500.0,0.00041361,120]
[422111494,1778577115000,-500.0,0.00041361,120]
[422111459,1778577115000,-234.92590869,0.00041361,120]
[422111462,1778577115000,-254.19145886,0.00041361,120]
[422111430,1778577115000,-500.0,0.00041361,120]
[422111435,1778577115000,-180.57489636,0.00041361,120]
[422111438,1778577115000,-531.2443463,0.00041361,120]
[422111493,1778577115000,-154.84941238,0.00041361,120]
[422111434,1778577115000,-454.19859285,0.00041361,120]
[422111436,1778577115000,-198.65763719,0.00041361,120]
[422111442,1778577115000,-519.37282268,0.00041361,120]
[422111440,1778577115000,-500.0,0.00041361,120]
[422111441,1778577115000,-500.0,0.00041361,120]
[422111445,1778577115000,-500.0,0.00041361,120]
[422111443,1778577115000,-500.0,0.00041361,120]
[422111444,1778577115000,-500.0,0.00041361,120]
[422111452,1778577115000,-610.64542272,0.00041361,120]
[422111433,1778577115000,-500.0,0.00041361,120]
[422111451,1778577115000,-500.0,0.00041361,120]
[422111446,1778577115000,-370.26153262,0.00041361,120]
[422111458,1778577115000,-444.7344842,0.00041361,120]
[422111455,1778577115000,-520.01794084,0.00041361,120]
[422111456,1778577115000,-500.0,0.00041361,120]
[422111457,1778577115000,-242.51172642,0.00041361,120]
[422111453,1778577115000,-500.0,0.00041361,120]
[422111460,1778577115000,-166.72717023,0.00041361,120]
[422111465,1778577115000,-623.94677745,0.00041361,120]
[422111454,1778577115000,-276.12176642,0.00041361,120]
[422111447,1778577115000,-500.0,0.00041361,120]
[422111448,1778577115000,-500.0,0.00041361,120]
[422111450,1778577115000,-465.73884819,0.00041361,120]
[422111449,1778577115000,-500.0,0.00041361,120]
[422111464,1778577115000,-347.40739599,0.00041361,120]
[422111540,1778577116000,-196.88691921,0.00041361,120]
[422111543,1778577116000,-500.0,0.00041361,120]
[422111532,1778577116000,-500.0,0.00041361,120]
[422111544,1778577116000,-500.0,0.00041361,120]
[422111531,1778577116000,-666.22,0.00041361,120]
[422111529,1778577116000,-666.22,0.00041361,120]
[422111530,1778577116000,-500.0,0.00041361,120]
[422111525,1778577116000,-500.0,0.00041361,120]
[422111536,1778577116000,-500.0,0.00041361,120]
[422111528,1778577116000,-500.20360253,0.00041361,120]
[422111533,1778577116000,-500.0,0.00041361,120]
[422111527,1778577116000,-500.0,0.00041361,120]
[422111542,1778577116000,-500.0,0.00041361,120]
[422111537,1778577116000,-666.22,0.00041361,120]
[422111534,1778577116000,-666.22,0.00041361,120]
[422111541,1778577116000,-666.22,0.00041361,120]
[422111539,1778577116000,-500.0,0.00041361,120]
[422111538,1778577116000,-500.0,0.00041361,120]
[422111545,1778577116000,-666.22,0.00041361,120]
[422111548,1778577116000,-666.22,0.00041361,120]
[422111547,1778577116000,-500.0,0.00041361,120]
[422111549,1778577116000,-500.0,0.00041361,120]
[422111554,1778577116000,-666.22,0.00041361,120]
[422111552,1778577116000,-500.0,0.00041361,120]
[422111526,1778577116000,-666.22,0.00041361,120]
[422111555,1778577116000,-500.0,0.00041361,120]
[422111535,1778577116000,-500.0,0.00041361,120]
[422111523,1778577116000,-666.22,0.00041361,120]
[422111513,1778577116000,-500.0,0.00041361,120]
[422111522,1778577116000,-500.0,0.00041361,120]
[422111556,1778577116000,-500.0,0.00041361,120]
[422111501,1778577116000,-500.0,0.00041361,120]
[422111496,1778577116000,-207.27656571,0.00041361,120]
[422111504,1778577116000,-500.0,0.00041361,120]
[422111495,1778577116000,-341.13896675,0.00041361,120]
[422111497,1778577116000,-500.0,0.00041361,120]
[422111503,1778577116000,-560.4296062,0.00041361,120]
[422111502,1778577116000,-500.0,0.00041361,120]
[422111500,1778577116000,-500.0,0.00041361,120]
[422111499,1778577116000,-500.0,0.00041361,120]
[422111498,1778577116000,-500.0,0.00041361,120]
[422111506,1778577116000,-298.02359426,0.00041361,120]
[422111516,1778577116000,-219.0379016,0.00041361,120]
[422111518,1778577116000,-500.0,0.00041361,120]
[422111508,1778577116000,-666.22,0.00041361,120]
[422111507,1778577116000,-500.0,0.00041361,120]
[422111514,1778577116000,-666.22,0.00041361,120]
[422111517,1778577116000,-666.22,0.00041361,120]
[422111511,1778577116000,-666.22,0.00041361,120]
[422111510,1778577116000,-500.0,0.00041361,120]
[422111505,1778577116000,-500.0,0.00041361,120]
[422111509,1778577116000,-500.0,0.00041361,120]
[422111515,1778577116000,-500.0,0.00041361,120]
[422111512,1778577116000,-666.22,0.00041361,120]
[422111519,1778577116000,-500.0,0.00041361,120]
[422111521,1778577116000,-500.0,0.00041361,120]
[422111524,1778577116000,-500.0,0.00041361,120]
[422111520,1778577116000,-666.22,0.00041361,120]
[422111551,1778577116000,-666.22,0.00041361,120]
[422111559,1778577116000,-500.0,0.00041361,120]
[422111546,1778577116000,-500.0,0.00041361,120]
[422111585,1778577116000,-154.35986938,0.00041361,120]
[422111588,1778577116000,-500.0,0.00041361,120]
[422111587,1778577116000,-522.96912532,0.00041361,120]
[422111592,1778577116000,-511.95719128,0.00041361,120]
[422111593,1778577116000,-287.86371536,0.00041361,120]
[422111589,1778577116000,-600.3300698,0.00041361,120]
[422111591,1778577116000,-202.15348243,0.00041361,120]
[422111590,1778577116000,-600.30588441,0.00041361,120]
[422111595,1778577116000,-500.0,0.00041361,120]
[422111594,1778577116000,-879.72,0.00041361,120]
[422111598,1778577116000,-500.0,0.00041361,120]
[422111600,1778577116000,-540.75991241,0.00041361,120]
[422111597,1778577116000,-500.0,0.00041361,120]
[422111604,1778577116000,-879.72,0.00041361,120]
[422111602,1778577116000,-879.72,0.00041361,120]
[422111603,1778577116000,-498.9151797,0.00041361,120]
[422111599,1778577116000,-879.72,0.00041361,120]
[422111601,1778577116000,-395.72769239,0.00041361,120]
[422111608,1778577116000,-879.72,0.00041361,120]
[422111606,1778577116000,-879.72,0.00041361,120]
[422111607,1778577116000,-879.72,0.00041361,120]
[422111610,1778577116000,-207.05790651,0.00041361,120]
[422111558,1778577116000,-500.0,0.00041361,120]
[422111612,1778577116000,-879.72,0.00041361,120]
[422111609,1778577116000,-500.0,0.00041361,120]
[422111613,1778577116000,-500.0,0.00041361,120]
[422111605,1778577116000,-879.72,0.00041361,120]
[422111596,1778577116000,-879.72,0.00041361,120]
[422111611,1778577116000,-506.11145673,0.00041361,120]
[422111577,1778577116000,-500.0,0.00041361,120]
[422111586,1778577116000,-500.0,0.00041361,120]
[422111550,1778577116000,-500.0,0.00041361,120]
[422111557,1778577116000,-666.22,0.00041361,120]
[422111561,1778577116000,-500.0,0.00041361,120]
[422111562,1778577116000,-666.22,0.00041361,120]
[422111570,1778577116000,-666.22,0.00041361,120]
[422111560,1778577116000,-228.07083053,0.00041361,120]
[422111565,1778577116000,-604.31550651,0.00041361,120]
[422111568,1778577116000,-666.22,0.00041361,120]
[422111569,1778577116000,-500.0,0.00041361,120]
[422111567,1778577116000,-500.0,0.00041361,120]
[422111564,1778577116000,-500.0,0.00041361,120]
[422111563,1778577116000,-214.31782163,0.00041361,120]
[422111553,1778577116000,-384.57340775,0.00041361,120]
[422111566,1778577116000,-666.22,0.00041361,120]
[422111571,1778577116000,-503.80448355,0.00041361,120]
[422111578,1778577116000,-580.72983937,0.00041361,120]
[422111579,1778577116000,-500.0,0.00041361,120]
[422111581,1778577116000,-500.0,0.00041361,120]
[422111584,1778577116000,-500.0,0.00041361,120]
[422111580,1778577116000,-247.53255733,0.00041361,120]
[422111583,1778577116000,-500.0,0.00041361,120]
[422111573,1778577116000,-666.22,0.00041361,120]
[422111576,1778577116000,-190.52831146,0.00041361,120]
[422111582,1778577116000,-172.53826054,0.00041361,120]
[422111572,1778577116000,-531.80590255,0.00041361,120]
[422111574,1778577116000,-666.2756195,0.00041361,120]
[422111575,1778577116000,-211.19984143,0.00041361,120]
[422111641,1778577117000,-500.0,0.00041361,120]
[422111660,1778577117000,-500.0,0.00041361,120]
[422111639,1778577117000,-879.86398248,0.00041361,120]
[422111643,1778577117000,-500.0,0.00041361,120]
[422111647,1778577117000,-500.0,0.00041361,120]
[422111649,1778577117000,-500.0,0.00041361,120]
[422111646,1778577117000,-500.0,0.00041361,120]
[422111645,1778577117000,-542.59154032,0.00041361,120]
[422111644,1778577117000,-500.0,0.00041361,120]
[422111652,1778577117000,-500.0,0.00041361,120]
[422111642,1778577117000,-500.0,0.00041361,120]
[422111657,1778577117000,-500.0,0.00041361,120]
[422111659,1778577117000,-500.0,0.00041361,120]
[422111653,1778577117000,-193.29215512,0.00041361,120]
[422111661,1778577117000,-493.600583,0.00041361,120]
[422111662,1778577117000,-500.0,0.00041361,120]
[422111655,1778577117000,-500.0,0.00041361,120]
[422111654,1778577117000,-500.0,0.00041361,120]
[422111656,1778577117000,-500.0,0.00041361,120]
[422111658,1778577117000,-500.0,0.00041361,120]
[422111663,1778577117000,-196.46457464,0.00041361,120]
[422111650,1778577117000,-576.71205466,0.00041361,120]
[422111651,1778577117000,-500.0,0.00041361,120]
[422111640,1778577117000,-500.0,0.00041361,120]
[422111625,1778577117000,-879.72,0.00041361,120]
[422111637,1778577117000,-504.54110824,0.00041361,120]
[422111666,1778577117000,-500.0,0.00041361,120]
[422111615,1778577117000,-879.72,0.00041361,120]
[422111614,1778577117000,-537.06517784,0.00041361,120]
[422111617,1778577117000,-879.72,0.00041361,120]
[422111616,1778577117000,-567.03363082,0.00041361,120]
[422111619,1778577117000,-879.72,0.00041361,120]
[422111621,1778577117000,-879.72,0.00041361,120]
[422111618,1778577117000,-193.67983276,0.00041361,120]
[422111620,1778577117000,-879.72,0.00041361,120]
[422111626,1778577117000,-180.07634073,0.00041361,120]
[422111623,1778577117000,-169.92231852,0.00041361,120]
[422111622,1778577117000,-879.72,0.00041361,120]
[422111624,1778577117000,-271.1059415,0.00041361,120]
[422111627,1778577117000,-575.20661469,0.00041361,120]
[422111629,1778577117000,-879.72,0.00041361,120]
[422111628,1778577117000,-879.72,0.00041361,120]
[422111633,1778577117000,-879.72,0.00041361,120]
[422111631,1778577117000,-635.92959094,0.00041361,120]
[422111632,1778577117000,-879.72,0.00041361,120]
[422111630,1778577117000,-879.72,0.00041361,120]
[422111636,1778577117000,-590.52827947,0.00041361,120]
[422111638,1778577117000,-495.9470012,0.00041361,120]
[422111634,1778577117000,-500.0,0.00041361,120]
[422111635,1778577117000,-879.72,0.00041361,120]
[422111665,1778577117000,-647.1593086,0.00041361,120]
[422111648,1778577117000,-500.0,0.00041361,120]
[422111667,1778577117000,-258.47896337,0.00041361,120]
[422111694,1778577117000,-4459.3,0.00041361,120]
[422111691,1778577117000,-151.03481233,0.00041361,120]
[422111698,1778577117000,-292.42237925,0.00041361,120]
[422111697,1778577117000,-500.0,0.00041361,120]
[422111699,1778577117000,-4459.3,0.00041361,120]
[422111700,1778577117000,-4459.3,0.00041361,120]
[422111701,1778577117000,-500.0,0.00041361,120]
[422111703,1778577117000,-4459.3,0.00041361,120]
[422111702,1778577117000,-505.14528761,0.00041361,120]
[422111704,1778577117000,-500.0,0.00041361,120]
[422111707,1778577117000,-500.0,0.00041361,120]
[422111705,1778577117000,-543.01933053,0.00041361,120]
[422111708,1778577117000,-4459.3,0.00041361,120]
[422111717,1778577117000,-4459.3,0.00041361,120]
[422111710,1778577117000,-542.00076468,0.00041361,120]
[422111709,1778577117000,-500.0,0.00041361,120]
[422111713,1778577117000,-4459.3,0.00041361,120]
[422111715,1778577117000,-4459.3,0.00041361,120]
[422111712,1778577117000,-500.0,0.00041361,120]
[422111716,1778577117000,-500.0,0.00041361,120]
[422111718,1778577117000,-4459.3,0.00041361,120]
[422111711,1778577117000,-4459.3,0.00041361,120]
[422111668,1778577117000,-500.0,0.00041361,120]
[422111692,1778577117000,-4459.3,0.00041361,120]
[422111693,1778577117000,-4459.3,0.00041361,120]
[422111706,1778577117000,-4459.3,0.00041361,120]
[422111689,1778577117000,-253.28585982,0.00041361,120]
[422111690,1778577117000,-505.51713196,0.00041361,120]
[422111669,1778577117000,-500.0,0.00041361,120]
[422111670,1778577117000,-534.44006205,0.00041361,120]
[422111664,1778577117000,-500.0,0.00041361,120]
[422111671,1778577117000,-500.0,0.00041361,120]
[422111674,1778577117000,-500.0,0.00041361,120]
[422111673,1778577117000,-544.71848173,0.00041361,120]
[422111676,1778577117000,-188.49488336,0.00041361,120]
[422111675,1778577117000,-523.43534358,0.00041361,120]
[422111677,1778577117000,-201.37860012,0.00041361,120]
[422111679,1778577117000,-4459.3,0.00041361,120]
[422111680,1778577117000,-383.9861,0.00041361,120]
[422111672,1778577117000,-500.0,0.00041361,120]
[422111686,1778577117000,-315.83033161,0.00041361,120]
[422111685,1778577117000,-4459.3,0.00041361,120]
[422111683,1778577117000,-4459.3,0.00041361,120]
[422111678,1778577117000,-4459.3,0.00041361,120]
[422111714,1778577117000,-500.0,0.00041361,120]
[422111684,1778577117000,-515.84635036,0.00041361,120]
[422111681,1778577117000,-4459.3,0.00041361,120]
[422111695,1778577117000,-4459.3,0.00041361,120]
[422111696,1778577117000,-193.3429412,0.00041361,120]
[422111687,1778577117000,-4459.3,0.00041361,120]
[422111682,1778577117000,-500.0,0.00041361,120]
[422111688,1778577117000,-500.0,0.00041361,120]
[422111733,1778577118000,-635.5273,0.00041361,120]
[422111740,1778577118000,-581.09779123,0.00041361,120]
[422111756,1778577118000,-155.70951127,0.00041361,120]
[422111737,1778577118000,-500.0,0.00041361,120]
[422111738,1778577118000,-546.27388126,0.00041361,120]
[422111744,1778577118000,-182.77243423,0.00041361,120]
[422111746,1778577118000,-401.7098,0.00041361,120]
[422111741,1778577118000,-240.15384533,0.00041361,120]
[422111743,1778577118000,-500.0,0.00041361,120]
[422111739,1778577118000,-511.2517023,0.00041361,120]
[422111736,1778577118000,-491.44981015,0.00041361,120]
[422111735,1778577118000,-501.16147726,0.00041361,120]
[422111742,1778577118000,-500.0,0.00041361,120]
[422111734,1778577118000,-500.0,0.00041361,120]
[422111722,1778577118000,-481.55014465,0.00041361,120]
[422111729,1778577118000,-500.0,0.00041361,120]
[422111726,1778577118000,-4459.3,0.00041361,120]
[422111728,1778577118000,-4459.41413882,0.00041361,120]
[422111727,1778577118000,-500.0,0.00041361,120]
[422111725,1778577118000,-500.0,0.00041361,120]
[422111724,1778577118000,-4459.3,0.00041361,120]
[422111723,1778577118000,-288.48112231,0.00041361,120]
[422111721,1778577118000,-4459.3,0.00041361,120]
[422111719,1778577118000,-519.89008502,0.00041361,120]
[422111730,1778577118000,-292.39289374,0.00041361,120]
[422111731,1778577118000,-321.31204382,0.00041361,120]
[422111720,1778577118000,-500.0,0.00041361,120]
[422111745,1778577118000,-554.97446537,0.00041361,120]
[422111732,1778577118000,-350.61542142,0.00041361,120]
[422111757,1778577118000,-178.70590546,0.00041361,120]
[422111751,1778577118000,-523.94890366,0.00041361,120]
[422111752,1778577118000,-500.0,0.00041361,120]
[422111750,1778577118000,-500.0,0.00041361,120]
[422111779,1778577118000,-500.0,0.00041361,120]
[422111778,1778577118000,-500.0,0.00041361,120]
[422111777,1778577118000,-603.68528025,0.00041361,120]
[422111776,1778577118000,-500.0,0.00041361,120]
[422111775,1778577118000,-337.67539392,0.00041361,120]
[422111771,1778577118000,-500.0,0.00041361,120]
[422111774,1778577118000,-168.58725539,0.00041361,120]
[422111773,1778577118000,-215.27580326,0.00041361,120]
[422111770,1778577118000,-500.0,0.00041361,120]
[422111769,1778577118000,-500.0,0.00041361,120]
[422111767,1778577118000,-500.0,0.00041361,120]
[422111768,1778577118000,-556.18161034,0.00041361,120]
[422111766,1778577118000,-150.27777591,0.00041361,120]
[422111772,1778577118000,-512.43617611,0.00041361,120]
[422111764,1778577118000,-565.31086824,0.00041361,120]
[422111763,1778577118000,-500.0,0.00041361,120]
[422111762,1778577118000,-523.47585409,0.00041361,120]
[422111758,1778577118000,-349.61976825,0.00041361,120]
[422111761,1778577118000,-557.76112809,0.00041361,120]
[422111759,1778577118000,-276.06849325,0.00041361,120]
[422111760,1778577118000,-500.0,0.00041361,120]
[422111753,1778577118000,-500.0,0.00041361,120]
[422111755,1778577118000,-172.0788946,0.00041361,120]
[422111749,1778577118000,-500.0,0.00041361,120]
[422111754,1778577118000,-500.0,0.00041361,120]
[422111748,1778577118000,-500.0,0.00041361,120]
[422111747,1778577118000,-549.73935667,0.00041361,120]
[422111765,1778577118000,-433.34484844,0.00041361,120]
[422111805,1778577119000,-452.39384,0.00041361,120]
[422111803,1778577119000,-500.0,0.00041361,120]
[422111801,1778577119000,-244.18667961,0.00041361,120]
[422111804,1778577119000,-582.27643197,0.00041361,120]
[422111806,1778577119000,-376.54513938,0.00041361,120]
[422111800,1778577119000,-500.0,0.00041361,120]
[422111807,1778577119000,-211.68476851,0.00041361,120]
[422111808,1778577119000,-535.10553054,0.00041361,120]
[422111814,1778577119000,-500.0,0.00041361,120]
[422111811,1778577119000,-545.19862872,0.00041361,120]
[422111810,1778577119000,-155.7709178,0.00041361,120]
[422111813,1778577119000,-537.28643523,0.00041361,120]
[422111812,1778577119000,-213.63662477,0.00041361,120]
[422111815,1778577119000,-251.22540569,0.00041361,120]
[422111816,1778577119000,-326.67124004,0.00041361,120]
[422111802,1778577119000,-500.0,0.00041361,120]
[422111809,1778577119000,-524.84816461,0.00041361,120]
[422111799,1778577119000,-483.03531309,0.00041361,120]
[422111784,1778577119000,-500.0,0.00041361,120]
[422111797,1778577119000,-500.0,0.00041361,120]
[422111821,1778577119000,-237.47911547,0.00041361,120]
[422111782,1778577119000,-500.0,0.00041361,120]
[422111781,1778577119000,-500.0,0.00041361,120]
[422111780,1778577119000,-544.04462139,0.00041361,120]
[422111783,1778577119000,-177.54650113,0.00041361,120]
[422111786,1778577119000,-500.0,0.00041361,120]
[422111785,1778577119000,-500.0,0.00041361,120]
[422111787,1778577119000,-500.0,0.00041361,120]
[422111789,1778577119000,-500.0,0.00041361,120]
[422111788,1778577119000,-500.0,0.00041361,120]
[422111790,1778577119000,-500.0,0.00041361,120]
[422111792,1778577119000,-500.0,0.00041361,120]
[422111791,1778577119000,-537.31167553,0.00041361,120]
[422111794,1778577119000,-500.0,0.00041361,120]
[422111793,1778577119000,-500.0,0.00041361,120]
[422111796,1778577119000,-500.0,0.00041361,120]
[422111795,1778577119000,-500.0,0.00041361,120]
[422111798,1778577119000,-164.8944647,0.00041361,120]
[422111819,1778577119000,-500.0,0.00041361,120]
[422111838,1778577119000,-583.67604207,0.00041361,120]
[422111820,1778577119000,-254.25218948,0.00041361,120]
[422111847,1778577119000,-181.39452459,0.00041361,120]
[422111840,1778577119000,-500.0,0.00041361,120]
[422111839,1778577119000,-500.0,0.00041361,120]
[422111841,1778577119000,-268.02771149,0.00041361,120]
[422111842,1778577119000,-448.83380889,0.00041361,120]
[422111837,1778577119000,-545.37866445,0.00041361,120]
[422111849,1778577119000,-500.0,0.00041361,120]
[422111845,1778577119000,-524.71586097,0.00041361,120]
[422111854,1778577119000,-513.42062501,0.00041361,120]
[422111851,1778577119000,-500.0,0.00041361,120]
[422111855,1778577119000,-500.0,0.00041361,120]
[422111857,1778577119000,-500.0,0.00041361,120]
[422111853,1778577119000,-500.0,0.00041361,120]
[422111852,1778577119000,-500.0,0.00041361,120]
[422111858,1778577119000,-500.0,0.00041361,120]
[422111818,1778577119000,-257.23856088,0.00041361,120]
[422111856,1778577119000,-500.0,0.00041361,120]
[422111848,1778577119000,-545.36233602,0.00041361,120]
[422111850,1778577119000,-500.0,0.00041361,120]
[422111844,1778577119000,-500.0,0.00041361,120]
[422111817,1778577119000,-545.24251503,0.00041361,120]
[422111822,1778577119000,-527.88020525,0.00041361,120]
[422111846,1778577119000,-174.34607056,0.00041361,120]
[422111823,1778577119000,-516.96119243,0.00041361,120]
[422111827,1778577119000,-623.63432312,0.00041361,120]
[422111833,1778577119000,-219.12823072,0.00041361,120]
[422111825,1778577119000,-595.1340025,0.00041361,120]
[422111828,1778577119000,-232.13043531,0.00041361,120]
[422111824,1778577119000,-532.70069478,0.00041361,120]
[422111832,1778577119000,-500.0,0.00041361,120]
[422111831,1778577119000,-500.0,0.00041361,120]
[422111830,1778577119000,-580.73460627,0.00041361,120]
[422111829,1778577119000,-517.31955964,0.00041361,120]
[422111836,1778577119000,-549.79891834,0.00041361,120]
[422111834,1778577119000,-500.0,0.00041361,120]
[422111843,1778577119000,-506.74634143,0.00041361,120]
[422111826,1778577119000,-234.49159772,0.00041361,120]
[422111835,1778577119000,-500.0,0.00041361,120]
[422111901,1778577120000,-509.98709076,0.00041361,120]
[422111909,1778577120000,-512.4894432,0.00041361,120]
[422111900,1778577120000,-490.67263906,0.00041361,120]
[422111899,1778577120000,-332.55254192,0.00041361,120]
[422111896,1778577120000,-500.0,0.00041361,120]
[422111898,1778577120000,-155.38338173,0.00041361,120]
[422111895,1778577120000,-500.0,0.00041361,120]
[422111891,1778577120000,-500.0,0.00041361,120]
[422111889,1778577120000,-500.0,0.00041361,120]
[422111894,1778577120000,-500.0,0.00041361,120]
[422111905,1778577120000,-265.88027311,0.00041361,120]
[422111892,1778577120000,-500.0,0.00041361,120]
[422111902,1778577120000,-500.0,0.00041361,120]
[422111908,1778577120000,-500.0,0.00041361,120]
[422111914,1778577120000,-500.0,0.00041361,120]
[422111907,1778577120000,-500.0,0.00041361,120]
[422111903,1778577120000,-500.0,0.00041361,120]
[422111904,1778577120000,-500.0,0.00041361,120]
[422111921,1778577120000,-500.0,0.00041361,120]
[422111911,1778577120000,-500.0,0.00041361,120]
[422111913,1778577120000,-558.08276823,0.00041361,120]
[422111915,1778577120000,-530.43281397,0.00041361,120]
[422111922,1778577120000,-511.84503248,0.00041361,120]
[422111912,1778577120000,-289.33514985,0.00041361,120]
[422111917,1778577120000,-549.55122071,0.00041361,120]
[422111920,1778577120000,-500.0,0.00041361,120]
[422111893,1778577120000,-500.0,0.00041361,120]
[422111910,1778577120000,-598.29692631,0.00041361,120]
[422111906,1778577120000,-418.07606368,0.00041361,120]
[422111890,1778577120000,-468.4159681,0.00041361,120]
[422111864,1778577120000,-203.71119441,0.00041361,120]
[422111897,1778577120000,-220.32095979,0.00041361,120]
[422111918,1778577120000,-519.86470783,0.00041361,120]
[422111859,1778577120000,-500.0,0.00041361,120]
[422111860,1778577120000,-500.00000016,0.00041361,120]
[422111867,1778577120000,-528.23562954,0.00041361,120]
[422111869,1778577120000,-272.29506548,0.00041361,120]
[422111868,1778577120000,-532.19901301,0.00041361,120]
[422111870,1778577120000,-545.21181272,0.00041361,120]
[422111871,1778577120000,-172.403914,0.00041361,120]
[422111873,1778577120000,-540.15490828,0.00041361,120]
[422111861,1778577120000,-500.0,0.00041361,120]
[422111872,1778577120000,-511.83466235,0.00041361,120]
[422111862,1778577120000,-272.2295143,0.00041361,120]
[422111865,1778577120000,-500.0,0.00041361,120]
[422111863,1778577120000,-558.72670972,0.00041361,120]